bitfinex/quotes_BTCUSD_20250530
["timestamp","ask_amount","ask_price","bid_price","bid_amount"]
[1748631906484,0.21938136,104840.0,104830.0,0.7546031]
[1748631906696,0.22038136,104840.0,104830.0,0.20986313]
[1748631907108,0.22138136,104840.0,104830.0,0.21888629]
[1748631907523,0.21184329,104840.0,104830.0,0.00902316]
[1748631907689,0.20230513,104840.0,104830.0,0.20934731]
[1748631907916,0.002,104840.0,104830.0,0.20934731]
[1748631908121,0.03061365,104840.0,104830.0,0.24610078]
[1748631908376,0.03061365,104840.0,104830.0,0.22842481]
[1748631908574,0.0115377,104840.0,104830.0,1.11316478]
[1748631908771,0.02107568,104840.0,104830.0,0.58609832]
[1748631908985,0.02107568,104840.0,104830.0,1.19276282]
[1748631909358,0.03061375,104840.0,104830.0,1.19276282]
[1748631909796,0.002,104840.0,104830.0,1.22549263]
[1748631910032,0.002,104840.0,104830.0,1.32134693]
[1748631910231,0.002,104840.0,104830.0,2.97206993]
[1748631910436,0.002,104840.0,104830.0,3.06530416]
[1748631910651,0.002,104840.0,104830.0,3.0741826]
[1748631910852,0.001,104840.0,104830.0,3.0741736]
[1748631911023,0.001,104840.0,104830.0,7.07222912]
[1748631911231,0.001,104840.0,104830.0,6.69732224]
[1748631911549,0.01907004,104870.0,104860.0,0.21933896]
[1748631911792,0.02860547,104870.0,104860.0,0.78170707]
[1748631912001,0.01906994,104870.0,104860.0,0.89310818]
[1748631912217,0.03814053,104870.0,104860.0,0.87548004]
[1748631912431,0.0286051,104870.0,104860.0,0.87548004]
[1748631912880,0.03814053,104870.0,104860.0,0.8759671]
[1748631913080,0.0286051,104870.0,104860.0,0.89363365]
[1748631913298,0.03814053,104870.0,104860.0,0.8759671]
[1748631913514,0.23838836,104870.0,104860.0,0.26152627]
[1748631913714,0.04767605,104870.0,104860.0,0.26152628]
[1748631913928,0.04767605,104870.0,104860.0,0.24385953]
[1748631914131,0.04767605,104870.0,104860.0,0.26152646]
[1748631914331,0.23838836,104870.0,104860.0,0.26152646]
[1748631914541,0.01906994,104870.0,104860.0,0.35403984]
[1748631914744,0.03814025,104870.0,104860.0,0.35403982]
[1748631914948,0.03814025,104870.0,104860.0,0.33637075]
[1748631915153,0.02860491,104870.0,104860.0,0.33637075]
[1748631915360,0.02860491,104870.0,104860.0,0.35403996]
[1748631915573,0.01906858,104880.0,104870.0,0.02860574]
[1748631915779,0.03813744,104880.0,104870.0,0.31144168]
[1748631916183,0.02860283,104880.0,104870.0,0.31144168]
[1748631916383,0.02860283,104880.0,104870.0,0.31144508]
[1748631916586,0.03813744,104880.0,104870.0,0.29377247]
[1748631916813,0.20981933,104890.0,104880.0,0.20976298]
[1748631917018,0.20981933,104890.0,104880.0,0.19069412]
[1748631917234,0.20981933,104890.0,104880.0,0.20022873]
[1748631917834,0.20981933,104890.0,104880.0,0.2855936]
[1748631918044,0.02860038,104890.0,104880.0,0.304662]
[1748631918267,0.01906549,104900.0,104890.0,0.21927623]
[1748631918487,0.01906677,104890.0,104880.0,0.23378978]
[1748631918705,0.21927677,104890.0,104880.0,0.22689696]
[1748631918926,0.21927677,104890.0,104880.0,0.23643157]
[1748631919136,0.20974325,104890.0,104880.0,0.21878044]
[1748631919347,0.20974325,104890.0,104880.0,0.2459655]
[1748631919550,0.21074325,104890.0,104880.0,0.26097585]
[1748631919770,0.21074325,104890.0,104880.0,0.34395282]
[1748631919958,0.19067594,104890.0,104880.0,0.32488369]
[1748631920185,0.19067594,104890.0,104880.0,0.24190699]
[1748631920413,0.19167594,104890.0,104880.0,0.24190166]
[1748631920624,0.19167594,104890.0,104880.0,0.2337907]
[1748631920837,0.20120955,104890.0,104880.0,0.2609689]
[1748631921264,0.20120955,104890.0,104880.0,0.24190013]
[1748631921443,0.20120955,104890.0,104880.0,0.23642421]
[1748631921886,0.20120955,104890.0,104880.0,0.28254586]
[1748631922087,0.20120955,104890.0,104880.0,0.2920802]
[1748631922290,0.20120955,104890.0,104880.0,0.29207864]
[1748631922508,0.20120955,104890.0,104880.0,0.27443634]
[1748631922717,0.20120955,104890.0,104880.0,0.2920787]
[1748631922925,0.20120955,104890.0,104880.0,0.27443634]
[1748631923124,0.20120955,104890.0,104880.0,0.28254721]
[1748631923329,0.20120955,104890.0,104880.0,0.29208163]
[1748631924206,0.21074289,104890.0,104880.0,0.30161704]
[1748631924407,0.22027659,104890.0,104880.0,0.29208288]
[1748631924619,0.22981038,104890.0,104880.0,0.08231994]
[1748631924831,0.22027704,104890.0,104880.0,0.08232227]
[1748631925042,0.22027704,104890.0,104880.0,0.02666478]
[1748631925263,0.21074343,104890.0,104880.0,0.02666478]
[1748631925938,0.21074343,104890.0,104880.0,0.02666487]
[1748631926162,0.21074343,104890.0,104880.0,0.02666463]
[1748631926579,0.21074343,104890.0,104880.0,0.02666462]
[1748631928083,0.21074343,104890.0,104880.0,0.02667124]
[1748631928489,0.21074343,104890.0,104880.0,0.02667106]
[1748631928700,0.21074343,104890.0,104880.0,0.00901728]
[1748631929364,0.21074343,104890.0,104880.0,0.02667134]
[1748631929983,0.21074343,104890.0,104880.0,0.02667342]
[1748631930644,0.21074343,104890.0,104880.0,0.02667341]
[1748631931080,0.21074343,104890.0,104880.0,0.02667543]
[1748631931295,0.21074343,104890.0,104880.0,0.02667519]
[1748631931850,0.21074343,104890.0,104880.0,0.02667512]
[1748631932266,0.21074343,104890.0,104880.0,0.00901728]
[1748631932476,0.21074343,104890.0,104880.0,0.02667521]
[1748631932897,0.21074343,104890.0,104880.0,0.0266756]
[1748631933800,0.21074343,104890.0,104880.0,0.02668001]
[1748631934226,0.21074343,104890.0,104880.0,0.02668018]
[1748631935672,0.21074343,104890.0,104880.0,0.02668041]
[1748631935875,0.21074343,104890.0,104880.0,0.00901728]
[1748631936080,0.21074343,104890.0,104880.0,0.02668236]
[1748631936439,0.21074343,104890.0,104880.0,0.0266824]
[1748631937226,0.21074343,104890.0,104880.0,0.02668369]
[1748631937426,0.21074343,104890.0,104880.0,0.00901728]
[1748631937781,0.21074343,104890.0,104880.0,0.02668383]
[1748631938013,0.84840167,104890.0,104880.0,0.02668383]
[1748631938194,0.94425597,104890.0,104880.0,0.02668383]
[1748631938427,0.94425597,104890.0,104880.0,0.02669025]
[1748631938636,0.94425597,104890.0,104880.0,0.0417006]
[1748631938850,1.67905597,104890.0,104880.0,0.02402763]
[1748631939055,2.22420299,104890.0,104880.0,0.02402763]
[1748631939276,2.23874384,104890.0,104880.0,0.02402763]
[1748631939897,2.23874384,104890.0,104860.0,0.0153844]
[1748631939898,0.5497829,104870.0,104860.0,0.0153844]
[1748631940097,1.65979357,104870.0,104860.0,0.0153844]
[1748631940301,2.07155357,104870.0,104860.0,0.0153844]
[1748631940703,2.07155357,104870.0,104860.0,0.02444854]
[1748631942126,2.07155357,104870.0,104860.0,0.0153844]
[1748631942344,1.99750422,104870.0,104860.0,0.0153844]
[1748631944594,2.00702893,104870.0,104860.0,0.0153844]
[1748631945249,1.70718893,104870.0,104860.0,0.0153844]
[1748631945447,2.00654893,104870.0,104860.0,0.0153844]
[1748631946307,0.7173972,104870.0,104860.0,0.0153844]
[1748631946512,0.8111572,104870.0,104860.0,0.0153844]
[1748631946672,0.2097829,104870.0,104860.0,0.21565123]
[1748631946842,0.2097829,104870.0,104860.0,0.00048706]
[1748631946843,0.3035429,104870.0,104860.0,0.00048706]
[1748631947043,0.84868992,104870.0,104860.0,0.00952163]
[1748631947255,0.84868992,104870.0,104860.0,0.02720262]
[1748631947256,0.94454422,104870.0,104860.0,0.02720262]
[1748631947455,0.94454422,104870.0,104860.0,0.0271976]
[1748631947785,0.94454422,104870.0,104860.0,0.02719856]
[1748631947997,0.94454422,104870.0,104860.0,0.02719857]
[1748631948189,0.94454422,104870.0,104860.0,0.02719655]
[1748631948537,1.03705544,104870.0,104860.0,0.02719655]
[1748631948713,1.03705544,104870.0,104860.0,0.02719977]
[1748631948923,1.03705544,104870.0,104860.0,0.00952163]
[1748631949947,1.03705544,104870.0,104860.0,0.02442245]
[1748631950374,0.3993972,104870.0,104860.0,0.02442245]
[1748631950573,0.94454422,104870.0,104860.0,0.02442245]
[1748631951132,0.11283004,104870.0,104860.0,0.24376141]
[1748631951493,0.23838873,104870.0,104860.0,0.25189081]
[1748631951696,0.22885312,104870.0,104860.0,0.26142688]
[1748631951867,0.23838873,104870.0,104860.0,0.25188688]
[1748631952079,0.22885385,104870.0,104860.0,0.23422553]
[1748631952314,0.21931869,104870.0,104860.0,0.25188706]
[1748631952692,0.21931869,104870.0,104860.0,0.2614282]
[1748631952895,0.21931869,104870.0,104860.0,0.27272048]
[1748631953072,0.20978344,104870.0,104860.0,0.26318368]
[1748631953273,0.20024792,104870.0,104860.0,0.05338042]
[1748631953492,0.29602864,104870.0,104860.0,0.03571473]
[1748631953699,0.83171363,104870.0,104860.0,0.03571473]
[1748631954326,0.83171363,104870.0,104860.0,0.02442245]
[1748631955153,0.83171363,104870.0,104860.0,0.01538788]
[1748631955973,0.83209702,104870.0,104860.0,0.01538788]
[1748631956179,0.92460824,104870.0,104860.0,0.01538788]
[1748631956800,0.83209702,104870.0,104860.0,0.01538788]
[1748631957766,0.28656661,104870.0,104860.0,0.01538788]
[1748631959543,0.28476661,104870.0,104860.0,0.01538788]
[1748631961831,0.28476661,104870.0,104860.0,0.02444281]
[1748631964889,1.18483787,104870.0,104860.0,0.00954199]
[1748631965091,1.27734909,104870.0,104860.0,0.00954199]
[1748631965302,1.35597009,104870.0,104860.0,0.00954199]
[1748631965507,1.36597009,104870.0,104860.0,0.00954199]
[1748631966116,1.36597009,104870.0,104860.0,0.00048706]
[1748631966321,1.36797009,104870.0,104860.0,0.00048706]
[1748631966942,0.20988296,104820.0,104810.0,0.08789495]
[1748631967183,0.20988296,104820.0,104810.0,0.08838255]
[1748631967427,0.20988296,104820.0,104810.0,0.11491471]
[1748631967831,0.20988296,104820.0,104810.0,0.12398533]
[1748631968246,0.20988296,104820.0,104810.0,0.1239829]
[1748631968458,0.20988296,104820.0,104810.0,0.1259829]
[1748631968948,0.20988296,104820.0,104810.0,0.04938023]
[1748631969665,0.20988296,104820.0,104810.0,0.05138023]
[1748631970090,0.20988296,104820.0,104810.0,0.03369406]
[1748631970298,0.20988296,104820.0,104810.0,0.05137394]
[1748631970714,0.20988296,104820.0,104810.0,0.05137399]
[1748631970922,0.20988296,104820.0,104810.0,0.02485069]
[1748631971145,0.20988296,104820.0,104810.0,0.05137507]
[1748631971371,0.20988296,104820.0,104810.0,0.24219655]
[1748631971606,0.02861975,104820.0,104810.0,0.30035808]
[1748631971830,0.21941888,104830.0,104820.0,0.20988296]
[1748631972080,0.21941888,104830.0,104820.0,0.22756757]
[1748631972299,0.21941888,104830.0,104820.0,0.21942285]
[1748631972560,0.21941888,104830.0,104820.0,0.24617921]
[1748631972780,0.0190775,104830.0,104820.0,0.23803318]
[1748631972994,0.01907713,104830.0,104820.0,0.28013381]
[1748631973208,0.02861565,104830.0,104820.0,0.29781635]
[1748631973438,0.02861565,104830.0,104820.0,0.29142609]
[1748631974084,0.03815454,104830.0,104820.0,0.30910333]
[1748631974299,0.03815454,104830.0,104820.0,0.29142609]
[1748631974769,0.03815454,104830.0,104820.0,0.30910289]
[1748631975001,0.03815454,104830.0,104820.0,0.30910254]
[1748631975271,0.00953889,104830.0,104820.0,0.29142609]
[1748631975735,0.01907759,104830.0,104820.0,0.29142609]
[1748631975960,0.01907759,104830.0,104820.0,0.30910226]
[1748631976194,0.02861657,104830.0,104820.0,0.29142609]
[1748631976480,0.03815518,104830.0,104820.0,0.29142609]
[1748631976683,0.03815509,104830.0,104820.0,0.30910141]
[1748631977031,0.02861657,104830.0,104820.0,0.29689747]
[1748631977270,0.03815564,104830.0,104820.0,0.30643699]
[1748631977666,0.03815564,104830.0,104820.0,0.32411209]
[1748631977876,0.03815564,104830.0,104820.0,0.30643699]
[1748631978490,0.20986313,104830.0,104820.0,0.23571688]
[1748631978833,0.20986313,104830.0,104820.0,0.25479693]
[1748631979167,0.20986313,104830.0,104820.0,0.27247244]
[1748631979378,0.20986313,104830.0,104820.0,0.26700189]
[1748631979584,0.20986313,104830.0,104820.0,0.24932638]
[1748631979943,0.20986313,104830.0,104820.0,0.25746224]
[1748631980159,0.20986313,104830.0,104820.0,0.23838219]
[1748631980368,0.20032415,104830.0,104820.0,0.03804448]
[1748631980582,0.20032415,104830.0,104820.0,0.23839018]
[1748631980792,0.20032415,104830.0,104820.0,0.25747005]
[1748631980997,0.20032415,104830.0,104820.0,0.26700985]
[1748631981200,0.20032415,104830.0,104820.0,0.25747005]
[1748631981657,0.20032415,104830.0,104820.0,0.25747296]
[1748631981918,0.20032415,104830.0,104820.0,0.23024642]
[1748631982154,0.15932415,104830.0,104820.0,0.2383957]
[1748631982406,0.15932415,104830.0,104820.0,0.23840429]
[1748631982615,0.15932415,104830.0,104820.0,0.29884105]
[1748631982814,0.15932415,104830.0,104820.0,0.30022288]
[1748631983073,0.15932415,104830.0,104820.0,0.30022307]
[1748631983274,0.15932415,104830.0,104820.0,0.30662953]
[1748631983481,0.15932415,104830.0,104820.0,0.30664888]
[1748631983682,0.01907823,104830.0,104820.0,0.31618848]
[1748631983836,0.01907786,104830.0,104820.0,0.30800992]
[1748631984244,0.2194021,104830.0,104820.0,0.31618836]
[1748631984586,0.20986331,104830.0,104820.0,0.2793909]
[1748631984786,0.20986331,104830.0,104820.0,0.2889307]
[1748631984970,0.20986331,104830.0,104820.0,0.25304418]
[1748631985274,0.03815481,104830.0,104820.0,0.25304317]
[1748631985654,0.04769397,104830.0,104820.0,0.25304317]
[1748631985856,0.04769397,104830.0,104820.0,0.27077143]
[1748631986052,0.04769397,104830.0,104820.0,0.25304317]
[1748631986253,0.23847905,104830.0,104820.0,0.36329095]
[1748631986454,0.23847987,104830.0,104820.0,0.33601496]
[1748631987262,0.22894135,104830.0,104820.0,0.02408116]
[1748631987423,0.20986349,104830.0,104820.0,0.21488444]
[1748631987622,0.20986349,104830.0,104820.0,0.03542785]
[1748631987870,0.20986349,104830.0,104820.0,0.22623113]
[1748631988068,0.20986349,104830.0,104820.0,0.23577129]
[1748631988272,0.20986349,104830.0,104820.0,0.25350525]
[1748631988528,0.20986349,104830.0,104820.0,0.23577129]
[1748631989436,0.16886349,104830.0,104820.0,0.03542785]
[1748631989857,0.16886349,104830.0,104820.0,0.03815498]
[1748631990304,0.16886349,104830.0,104820.0,0.0204175]
[1748631990509,0.16886349,104830.0,104820.0,0.03815628]
[1748631992087,0.16886349,104830.0,104820.0,0.0204175]
[1748631992309,0.16886349,104830.0,104820.0,0.03815907]
[1748631992527,0.16886349,104830.0,104820.0,0.03816033]
[1748631992754,0.16886349,104830.0,104820.0,0.0381589]
[1748631993684,0.16886349,104830.0,104820.0,0.03817561]
[1748631993886,0.16886349,104830.0,104820.0,0.03817551]
[1748631994304,0.16886349,104830.0,104820.0,0.03817682]
[1748631994956,0.16886349,104830.0,104820.0,0.0204175]
[1748631995173,0.16886349,104830.0,104820.0,0.03817679]
[1748631995654,0.16886349,104830.0,104820.0,0.05318714]
[1748631995998,0.16886349,104830.0,104820.0,0.05318789]
[1748631996208,0.16886349,104830.0,104820.0,0.03542785]
[1748631996440,0.12786349,104830.0,104820.0,0.05318788]
[1748631996653,0.12786349,104830.0,104820.0,0.03542785]
[1748631996869,0.12786349,104830.0,104820.0,0.0204175]
[1748631997533,0.12786349,104830.0,104820.0,0.03818002]
[1748631997753,0.12786349,104830.0,104820.0,0.0204175]
[1748631998019,0.12786349,104830.0,104820.0,0.03817991]
[1748631998231,0.12786349,104830.0,104820.0,0.0204175]
[1748631998452,0.67349543,104830.0,104820.0,0.0204175]
[1748631998679,0.67349543,104830.0,104820.0,0.05594705]
[1748631998905,0.67349543,104830.0,104820.0,0.03818185]
[1748631999320,0.12786349,104830.0,104820.0,0.05594989]
[1748631999585,0.12786349,104830.0,104820.0,0.03818185]
[1748631999805,0.12786349,104830.0,104820.0,0.05595008]
[1748632000020,0.12786349,104830.0,104820.0,0.03818185]
[1748632000931,0.12786349,104830.0,104820.0,0.0531922]
[1748632001416,0.12786349,104830.0,104820.0,0.07096609]
[1748632001631,0.12786349,104830.0,104820.0,0.0531922]
[1748632003233,0.12786349,104830.0,104820.0,0.07097006]
[1748632003471,0.11286349,104830.0,104820.0,0.07097103]
[1748632003678,0.11286349,104830.0,104820.0,0.0531922]
[1748632004133,0.11286349,104830.0,104820.0,0.07097112]
[1748632004360,0.11286349,104830.0,104820.0,0.0531922]
[1748632004614,0.11286349,104830.0,104820.0,0.03818185]
[1748632005093,0.11286349,104830.0,104820.0,0.06644795]
[1748632005360,0.11286349,104830.0,104820.0,0.03818185]
[1748632005783,0.11286349,104830.0,104820.0,0.05596204]
[1748632006018,0.11286349,104830.0,104820.0,0.03818185]
[1748632007260,0.11286349,104830.0,104820.0,0.0531922]
[1748632007965,0.11286349,104830.0,104820.0,0.07098172]
[1748632008205,0.11286349,104830.0,104820.0,0.0531922]
[1748632008618,0.11286349,104830.0,104820.0,0.07098039]
[1748632009245,0.11286349,104830.0,104820.0,0.0709813]
[1748632009465,0.65849543,104830.0,104820.0,0.0531922]
[1748632009873,0.65849543,104830.0,104820.0,0.03818185]
[1748632010918,0.65849543,104830.0,104820.0,0.05597143]
[1748632011130,0.65849543,104830.0,104820.0,0.03818185]
[1748632011587,0.95729543,104830.0,104820.0,0.03818185]
[1748632011803,0.95729543,104830.0,104820.0,0.05597415]
[1748632012011,0.95729543,104830.0,104820.0,0.03818185]
[1748632012427,0.95729543,104830.0,104820.0,0.05597743]
[1748632012642,0.95729543,104830.0,104820.0,0.05597798]
[1748632012850,0.95729543,104830.0,104820.0,0.03818185]
[1748632013325,0.41166349,104830.0,104820.0,0.03818185]
[1748632013747,0.41166349,104830.0,104820.0,0.05598847]
[1748632013961,0.41166349,104830.0,104820.0,0.03818185]
[1748632014176,0.41166349,104830.0,104820.0,0.05598827]
[1748632014395,0.11286349,104830.0,104820.0,0.03818185]
[1748632015082,0.11286349,104830.0,104820.0,0.0531922]
[1748632015756,0.11286349,104830.0,104820.0,0.07099726]
[1748632015967,0.11286349,104830.0,104820.0,0.0531922]
[1748632016633,0.11286349,104830.0,104820.0,0.07099753]
[1748632016848,0.11286349,104830.0,104820.0,0.0531922]
[1748632017493,0.09886349,104830.0,104820.0,0.0531922]
[1748632018974,0.09886349,104830.0,104820.0,0.07100828]
[1748632019186,0.09886349,104830.0,104820.0,0.0531922]
[1748632019456,0.01907768,104830.0,104820.0,0.85752508]
[1748632019679,0.21940192,104830.0,104820.0,0.81882294]
[1748632019909,0.20986322,104830.0,104820.0,0.30054498]
[1748632020137,0.20032424,104830.0,104820.0,0.28273107]
[1748632020371,0.20032424,104830.0,104820.0,0.30054188]
[1748632020624,0.20032424,104830.0,104820.0,0.28273107]
[1748632020853,0.00953907,104830.0,104820.0,0.80690012]
[1748632021098,0.2194021,104830.0,104820.0,0.25172866]
[1748632021327,0.2194021,104830.0,104820.0,0.25172884]
[1748632021545,0.2194021,104830.0,104820.0,0.26406403]
[1748632021766,0.20986331,104830.0,104820.0,0.23671849]
[1748632021978,0.20986331,104830.0,104820.0,0.25452407]
[1748632022231,0.20986331,104830.0,104820.0,0.25452401]
[1748632022456,0.20032424,104830.0,104820.0,0.22717851]
[1748632022678,0.20032424,104830.0,104820.0,0.04463988]
[1748632022900,1.03513702,104830.0,104820.0,0.04202595]
[1748632023111,1.03513702,104830.0,104820.0,0.05983665]
[1748632023333,1.03513702,104830.0,104820.0,0.05983617]
[1748632023559,1.03513702,104830.0,104820.0,0.05604163]
[1748632023778,1.03513702,104830.0,104820.0,0.05604169]
[1748632024427,0.48950508,104830.0,104820.0,0.05604169]
[1748632024661,0.48950508,104830.0,104820.0,0.05604021]
[1748632025090,0.58535938,104830.0,104820.0,0.03823141]
[1748632025298,0.58535938,104830.0,104820.0,0.05359792]
[1748632025725,0.54435938,104830.0,104820.0,0.05359836]
[1748632025936,0.54435938,104830.0,104820.0,0.05359797]
[1748632026173,0.54435938,104830.0,104820.0,0.05359796]
[1748632026384,0.54435938,104830.0,104820.0,0.05359883]
[1748632026599,0.54435938,104830.0,104820.0,0.03579141]
[1748632027027,0.54435938,104830.0,104820.0,0.05359884]
[1748632027791,1.18347132,104830.0,104820.0,0.05359884]
[1748632028009,1.18347132,104830.0,104820.0,0.05360855]
[1748632028441,1.18347132,104830.0,104820.0,0.03579141]
[1748632028646,1.18347132,104830.0,104820.0,0.02439516]
[1748632030476,0.63783938,104830.0,104820.0,0.02439516]
[1748632030692,1.18347132,104830.0,104820.0,0.02439516]
[1748632030889,0.7303506,104830.0,104820.0,0.02439516]
[1748632031114,0.63783938,104830.0,104820.0,0.02439516]
[1748632031317,1.18347132,104830.0,104820.0,0.02439516]
[1748632031970,0.55488411,104820.0,104810.0,0.01188385]
[1748632032210,2.32311618,104820.0,104810.0,0.01188385]
[1748632032427,2.32311618,104820.0,104810.0,0.0004876]
[1748632033506,2.36213283,104820.0,104810.0,0.0004876]
[1748632033772,2.40309245,104820.0,104810.0,0.0004876]
[1748632033973,2.37513283,104820.0,104810.0,0.0004876]
[1748632034194,2.40309245,104820.0,104810.0,0.0004876]
[1748632034839,2.40409245,104820.0,104810.0,0.0004876]
[1748632035256,2.32748978,104820.0,104810.0,0.0004876]
[1748632036637,2.29953016,104820.0,104810.0,0.0004876]
[1748632037803,2.29953016,104820.0,104760.0,0.01139625]
[1748632037804,0.75561506,104770.0,104760.0,0.01139625]
[1748632038025,1.24358936,104770.0,104760.0,0.01154228]
[1748632038233,1.24358936,104770.0,104760.0,0.02043336]
[1748632038446,1.24358936,104770.0,104760.0,0.00014603]
[1748632039077,0.30583742,104770.0,104760.0,0.00014603]
[1748632039284,0.20998312,104770.0,104760.0,0.00014603]
[1748632039924,0.75561506,104770.0,104760.0,0.00014603]
[1748632040118,0.75561506,104770.0,104760.0,0.00214603]
[1748632040331,0.75561506,104770.0,104760.0,0.00414603]
[1748632042008,0.92807203,104770.0,104760.0,0.01303856]
[1748632042239,0.92807203,104770.0,104760.0,0.00414603]
[1748632043142,0.92807203,104770.0,104760.0,0.00214603]
[1748632043364,0.94744474,104770.0,104760.0,0.00214603]
[1748632043587,0.94744474,104770.0,104760.0,0.00014603]
[1748632043817,1.03995596,104770.0,104760.0,0.00014603]
[1748632045146,1.26300207,104770.0,104760.0,0.00014603]
[1748632046221,1.26304207,104770.0,104760.0,0.00014603]
[1748632051132,0.71741013,104770.0,104760.0,0.00014603]
[1748632051339,1.27238999,104770.0,104760.0,0.00014603]
[1748632059064,1.27238999,104770.0,104760.0,0.0092323]
[1748632059276,1.36490121,104770.0,104760.0,0.0092323]
[1748632059944,1.27238999,104770.0,104760.0,0.0092323]
[1748632060163,0.88018999,104770.0,104760.0,0.0092323]
[1748632060384,1.27234999,104770.0,104760.0,0.0092323]
[1748632060859,2.15798193,104770.0,104760.0,0.0092323]
[1748632061067,2.17252278,104770.0,104760.0,0.0092323]
[1748632061279,2.265034,104770.0,104760.0,0.0092323]
[1748632061930,2.266034,104770.0,104760.0,0.00014603]
[1748632062353,2.267034,104770.0,104760.0,0.00014603]
[1748632062783,2.266034,104770.0,104760.0,0.00014603]
[1748632063200,2.265034,104770.0,104760.0,0.00014603]
[1748632063615,2.267034,104770.0,104760.0,0.00014603]
[1748632064045,2.268034,104770.0,104760.0,0.00014603]
[1748632066789,2.283224,104770.0,104760.0,0.00014603]
[1748632072054,0.22458411,104740.0,104730.0,0.01139625]
[1748632072263,1.27616713,104740.0,104730.0,0.01188439]
[1748632072465,1.25811035,104740.0,104730.0,0.02081119]
[1748632072671,1.27330135,104740.0,104730.0,0.02081119]
[1748632072892,0.8667205,104740.0,104730.0,0.01852383]
[1748632073121,1.33612072,104740.0,104730.0,0.01852381]
[1748632073348,1.33712072,104740.0,104730.0,0.00959691]
[1748632074221,1.33812072,104740.0,104730.0,0.00959691]
[1748632075002,1.2456095,104740.0,104730.0,0.00959691]
[1748632078570,0.40125756,104740.0,104730.0,0.00959691]
[1748632078780,0.8535295,104740.0,104730.0,0.00959691]
[1748632078983,1.2455695,104740.0,104730.0,0.00959691]
[1748632079413,0.8535295,104740.0,104730.0,0.00959691]
[1748632079618,1.2455695,104740.0,104730.0,0.00959691]
[1748632080495,0.9468895,104740.0,104730.0,0.00959691]
[1748632080719,0.8535295,104740.0,104730.0,0.00959691]
[1748632080980,1.1522095,104740.0,104730.0,0.00959691]
[1748632081177,0.40040878,104740.0,104730.0,0.00959691]
[1748632081433,0.0306416,104740.0,104730.0,0.22920822]
[1748632081679,0.01154672,104740.0,104730.0,0.57875594]
[1748632081880,0.01154681,104740.0,104730.0,1.12438788]
[1748632082090,0.002,104740.0,104730.0,1.12438788]
[1748632082330,0.002,104740.0,104730.0,1.22024218]
[1748632082550,0.002,104740.0,104730.0,1.42130419]
[1748632082758,0.002,104740.0,104730.0,5.12630856]
[1748632082973,0.002,104740.0,104730.0,5.09728756]
[1748632083199,0.002,104740.0,104730.0,4.18774056]
[1748632083405,0.001,104740.0,104730.0,2.39508756]
[1748632083659,0.01908988,104760.0,104750.0,0.21956929]
[1748632083904,0.02582459,104760.0,104750.0,0.38987801]
[1748632084113,0.01908979,104760.0,104750.0,0.38987801]
[1748632084328,0.01908988,104760.0,104750.0,0.38987801]
[1748632084578,0.0095448,104760.0,104750.0,0.39898678]
[1748632084788,0.01908979,104760.0,104750.0,0.39898678]
[1748632085215,0.02863505,104760.0,104750.0,0.39898678]
[1748632085368,0.01908979,104760.0,104750.0,0.39898678]
[1748632085576,0.02863496,104760.0,104750.0,0.39998678]
[1748632085982,0.02863496,104760.0,104750.0,0.40098678]
[1748632087134,0.0381804,104760.0,104750.0,0.23067806]
[1748632087337,0.02863496,104760.0,104750.0,0.23067806]
[1748632087557,0.0381804,104760.0,104750.0,0.23067806]
[1748632087761,0.03818113,104760.0,104750.0,0.57067824]
[1748632087960,0.03818113,104760.0,104750.0,0.59535916]
[1748632088395,0.03818113,104760.0,104750.0,0.68787038]
[1748632088818,0.02863551,104760.0,104750.0,0.68787038]
[1748632089030,0.03818095,104760.0,104750.0,0.59535916]
[1748632089257,0.22909405,104760.0,104750.0,0.58762039]
[1748632089470,0.22909405,104760.0,104750.0,0.59716674]
[1748632089678,0.21954888,104760.0,104750.0,0.57807413]
[1748632089921,0.21954888,104760.0,104750.0,0.58762048]
[1748632090145,0.21000353,104760.0,104750.0,0.57248546]
[1748632090352,0.21000353,104760.0,104750.0,0.56293911]
[1748632090353,0.20045809,104760.0,104750.0,0.56293911]
[1748632090767,0.20045809,104760.0,104750.0,0.66499668]
[1748632091334,0.19981809,104760.0,104750.0,0.67454294]
[1748632091563,0.19981809,104760.0,104750.0,0.65545033]
[1748632091769,0.19981809,104760.0,104750.0,0.66499668]
[1748632092197,0.19981809,104760.0,104750.0,0.67454294]
[1748632092626,0.19981809,104760.0,104750.0,0.65545033]
[1748632092844,0.19981809,104760.0,104750.0,0.66499668]
[1748632093669,0.19981809,104760.0,104750.0,0.67454294]
[1748632094091,0.21000335,104760.0,104750.0,0.69363501]
[1748632094291,0.21954897,104760.0,104750.0,0.68408911]
[1748632094701,0.21954897,104760.0,104750.0,0.6936351]
[1748632095442,0.21954897,104760.0,104750.0,0.68408911]
[1748632095650,0.21954897,104760.0,104750.0,0.69363519]
[1748632096439,0.21954897,104760.0,104750.0,0.69363474]
[1748632096651,0.21954897,104760.0,104750.0,0.60112352]
[1748632097079,0.21954897,104760.0,104750.0,0.58203145]
[1748632097659,0.21954897,104760.0,104750.0,0.56293902]
[1748632097887,0.21000371,104760.0,104750.0,0.57248546]
[1748632098123,0.21000371,104760.0,104750.0,0.5629392]
[1748632098355,0.21000371,104760.0,104750.0,0.57248555]
[1748632098575,0.21000371,104760.0,104750.0,0.58203181]
[1748632099069,0.21000371,104760.0,104750.0,0.67454303]
[1748632100101,0.01909079,104760.0,104750.0,0.6936351]
[1748632100297,0.00954499,104760.0,104750.0,0.6936351]
[1748632100540,0.51792747,104770.0,104760.0,0.21000353]
[1748632100869,0.22907218,104770.0,104760.0,0.20045818]
[1748632101093,0.52747218,104770.0,104760.0,0.28445804]
[1748632101290,0.51792801,104770.0,104760.0,0.28445804]
[1748632102013,0.51892801,104770.0,104760.0,0.29356681]
[1748632103311,0.50083904,104770.0,104760.0,0.28402137]
[1748632103883,0.50083904,104770.0,104760.0,0.2935669]
[1748632104342,0.50083904,104770.0,104760.0,0.21911248]
[1748632105393,0.50083904,104770.0,104760.0,0.2304656]
[1748632105777,0.50083904,104770.0,104760.0,0.24001104]
[1748632106652,0.22152765,104770.0,104760.0,0.59910147]
[1748632106859,0.22152765,104770.0,104760.0,0.58001068]
[1748632107692,0.22152765,104770.0,104760.0,0.6725219]
[1748632108122,0.22152765,104770.0,104760.0,0.66297664]
[1748632108332,0.22152765,104770.0,104760.0,0.67811166]
[1748632108848,0.22152765,104770.0,104760.0,0.66675854]
[1748632108987,0.22152765,104770.0,104760.0,0.58379267]
[1748632110143,0.22152765,104770.0,104760.0,0.59333793]
[1748632110351,0.22152765,104770.0,104760.0,0.6028831]
[1748632110982,0.21198348,104770.0,104760.0,0.59333793]
[1748632111388,0.21198348,104770.0,104760.0,0.58379267]
[1748632112604,0.21198348,104770.0,104760.0,0.68025921]
[1748632112824,0.21198348,104770.0,104760.0,0.67071413]
[1748632113028,0.01154417,104770.0,104760.0,0.68025912]
[1748632113242,0.02108796,104770.0,104760.0,0.68025912]
[1748632113433,0.04017675,104770.0,104760.0,0.68025912]
[1748632114402,0.03063222,104770.0,104760.0,0.68025912]
[1748632114807,0.002,104770.0,104760.0,1.22589106]
[1748632115011,0.02862995,104780.0,104770.0,0.21952737]